bitfinex-derivatives/quotes_SOLF0:USTF0_20251020
["timestamp","ask_amount","ask_price","bid_price","bid_amount"]
[1760928441972,7.32043967,187.14,187.04,1.32]
[1760928444269,2.82,187.14,187.04,1.32]
[1760928446276,7.31397608,187.14,187.04,1.32]
[1760928446968,4.8081,187.13,187.04,1.32]
[1760928447170,4.4925637,187.13,187.01,47.92]
[1760928447376,2.82,187.13,187.01,47.92]
[1760928447573,2.82,187.12,187.01,47.92]
[1760928447876,4.97186186,187.14,187.01,47.92]
[1760928448072,2.82,187.1,187.01,47.92]
[1760928451680,4.8091,187.09,187.01,47.92]
[1760928451878,4.97186186,187.12,186.95,1.32]
[1760928452072,7.79186186,187.11,186.95,1.32]
[1760928452582,2.82,187.09,186.95,1.32]
[1760928453078,4.8099,187.06,186.95,6.1326]
[1760928453278,2.82,187.05,186.95,6.1326]
[1760928453676,19.20474658,187.05,186.95,6.1326]
[1760928453877,2.82,187.05,186.95,6.1326]
[1760928454582,2.82,187.03,186.95,1.32]
[1760928454975,2.82,187.06,186.93,8.58]
[1760928455175,2.82,187.0,186.93,8.58]
[1760928455380,2.82,187.0,186.91,1.32]
[1760928456082,7.6316,187.0,186.91,1.32]
[1760928456783,7.6316,187.0,186.86,8.60788218]
[1760928456784,4.8119,186.98,186.88,1.32]
[1760928457183,2.82,186.97,186.88,1.32]
[1760928457981,4.8124,186.96,186.88,1.32]
[1760928459781,2.82,186.97,186.88,1.32]
[1760928461383,7.6322,186.97,186.88,1.32]
[1760928463290,2.82,186.97,186.88,1.32]
[1760928463485,4.8116,187.0,186.88,1.32]
[1760928463984,4.8116,187.0,186.89,4.8142]
[1760928464189,2.82,186.99,186.9,1.32]
[1760928464692,2.82,186.96,186.86,14.74268218]
[1760928465091,2.82,186.96,186.87,1.32]
[1760928470495,7.6326,186.96,186.87,1.32]
[1760928472689,7.6326,186.96,186.89,3.21844397]
[1760928475792,2.82,186.96,186.93,1.32]
[1760928475994,2.88,187.05,186.93,1.32]
[1760928476591,2.88,186.98,186.92,3.21844397]
[1760928478396,2.88,186.98,186.9,1.32]
[1760928478595,2.88,186.98,186.92,4.53844397]
[1760928479594,3.21844397,187.03,186.86,1.32]
[1760928479793,2.88,187.02,186.87,3.21844397]
[1760928480002,2.88,186.94,186.87,3.21844397]
[1760928480397,2.88,186.99,186.9,4.53844397]
[1760928480798,4.8121,186.97,186.9,4.53844397]
[1760928481094,4.97186186,187.02,186.9,3.21844397]
[1760928481300,2.88,187.03,186.96,3.21844397]
[1760928481801,7.6908,187.03,186.96,3.21844397]
[1760928482199,2.88,187.02,186.99,3.21844397]
[1760928482500,2.88,187.01,186.99,3.21844397]
[1760928482702,2.88,187.02,186.99,3.21844397]
[1760928483295,2.88,187.01,186.99,3.21844397]
[1760928484398,2.88,187.05,186.99,3.21844397]
[1760928484595,2.88,187.05,187.02,3.21844397]
[1760928485103,2.88,187.05,186.99,3.21844397]
[1760928485303,7.6903,187.05,186.99,3.21844397]
[1760928485503,2.88,187.05,186.96,3.21844397]
[1760928485696,7.85186186,187.05,186.96,3.21844397]
[1760928485892,2.88,187.05,186.96,3.21844397]
[1760928486300,7.85186186,187.05,186.96,3.21844397]
[1760928487104,2.88,187.02,186.96,3.21844397]
[1760928488004,7.85186186,187.07,186.99,4.53844397]
[1760928488206,2.88,187.11,187.03,1.32]
[1760928488701,2.88,187.11,187.06,2.05626638]
[1760928488901,16.09499166,187.12,187.06,2.05626638]
[1760928489103,2.88,187.12,187.06,2.05626638]
[1760928489401,2.88,187.12,187.03,2.05626638]
[1760928489402,18.9429395,187.12,187.03,2.05626638]
[1760928489606,2.88,187.1,187.01,2.05626638]
[1760928490002,2.88,187.1,187.03,3.37626638]
[1760928490308,2.88,187.1,186.99,4.8116]
[1760928490309,2.88,187.1,187.02,1.32]
[1760928490607,2.05626638,187.11,187.02,1.32]
[1760928491205,4.93626638,187.11,187.02,1.32]
[1760928491604,2.88,187.11,187.02,1.32]
[1760928491801,4.93626638,187.11,187.02,1.32]
[1760928493905,9.74506638,187.11,187.02,1.32]
[1760928494102,2.05626638,187.09,187.02,1.32]
[1760928494503,2.65,187.08,187.02,1.32]
[1760928495906,2.65,187.08,186.99,6.86786638]
[1760928496111,7.4595,187.08,186.99,3.38626638]
[1760928496312,2.05626638,187.07,186.99,1.33]
[1760928497914,2.87,187.05,186.99,1.33]
[1760928498214,4.92626638,187.05,186.99,1.33]
[1760928500119,4.92626638,187.05,186.96,12.5922]
[1760928500513,4.92626638,187.05,186.97,1.32]
[1760928503525,2.05626638,187.03,186.97,1.32]
[1760928504322,2.87,187.02,186.97,1.32]
[1760928504719,2.05626638,187.03,186.97,1.32]
[1760928504720,4.92626638,187.03,186.97,1.32]
[1760928506721,236.38227844,187.28,187.01,1.32]
[1760928506722,4.97186186,187.12,187.01,1.32]
[1760928506916,2.87,187.11,187.01,1.32]
[1760928507122,4.92626638,187.11,187.03,1.32]
[1760928507324,2.05626638,187.07,186.99,1.32]
[1760928507519,4.92626638,187.05,186.99,1.32]
[1760928507723,4.92626638,187.03,186.99,1.32]
[1760928508324,4.92626638,187.03,186.97,4.812]
[1760928508627,2.05626638,187.03,186.98,1.32]
[1760928508827,2.05626638,187.03,186.97,4.812]
[1760928509027,2.05626638,187.03,186.97,6.132]
[1760928509223,2.05626638,187.03,186.97,1.32]
[1760928510429,2.87,187.04,186.97,1.32]
[1760928510629,2.05626638,187.03,186.97,1.32]
[1760928512126,2.87,187.04,186.97,1.32]
[1760928514330,2.87,187.04,186.97,6.1319]
[1760928514925,2.87,187.09,187.0,6.1311]
[1760928515126,2.05626638,187.08,187.0,6.1311]
[1760928515320,2.05626638,187.06,187.0,6.1311]
[1760928515520,2.05626638,187.06,186.97,1.32]
[1760928515736,2.87,187.05,186.97,1.32]
[1760928516233,2.87,187.05,186.99,4.8114]
[1760928520437,2.87,187.05,186.97,6.1321]
[1760928520438,2.05626638,187.04,186.97,6.1321]
[1760928520638,2.87,187.03,186.97,6.1321]
[1760928521233,2.05626638,187.02,186.94,1.32]
[1760928521538,2.05626638,187.0,186.94,1.32]
[1760928522934,2.05626638,187.0,186.94,6.1328]
[1760928525645,2.05626638,187.0,186.94,4.8128]
[1760928525948,2.87,186.99,186.94,4.8128]
[1760928526147,2.05626638,187.0,186.94,4.8128]
[1760928526540,2.87,186.99,186.94,4.8128]
[1760928526747,4.92626638,187.0,186.94,4.8128]
[1760928528543,2.05626638,186.96,186.89,1.32]
[1760928529750,2.86,186.95,186.91,6.1334]
[1760928529948,2.05626638,186.96,186.91,1.32]
[1760928530146,2.05626638,186.94,186.87,1.32]
[1760928530753,2.05626638,186.97,186.91,1.32]
[1760928531152,2.05626638,186.95,186.88,1.32]
[1760928531945,2.05626638,186.95,186.88,6.1344]
[1760928532249,2.86,186.94,186.88,6.1344]
[1760928533846,2.86,186.94,186.88,8.19066638]
[1760928535558,2.86,186.94,186.88,6.1344]
[1760928535752,2.86,186.94,186.88,8.19066638]
[1760928536454,2.86,186.94,186.88,6.1344]
[1760928536652,2.86,186.94,186.88,8.19066638]
[1760928539856,2.86,186.94,186.88,1.32]
[1760928540056,2.86,186.94,186.88,3.37626638]
[1760928541549,2.86,186.94,186.84,6.1353]
[1760928541859,2.86,186.93,186.85,2.05626638]
[1760928542155,2.05626638,186.92,186.84,1.32]
[1760928542352,2.86,186.91,186.84,3.37626638]
[1760928543153,2.05626638,186.9,186.84,1.32]
[1760928544859,2.86,186.89,186.82,4.8159]
[1760928545762,2.86,186.87,186.81,1.32]
[1760928546458,2.86,186.86,186.8,46.24]
[1760928546654,4.91626638,186.86,186.8,46.24]
[1760928546857,2.86,186.85,186.78,110.15000201]
[1760928547255,2.86,186.81,186.74,46.24]
[1760928549059,2.86,186.81,186.75,3.37626638]
[1760928549655,2.86,186.81,186.74,46.24]
[1760928549857,2.86,186.8,186.74,46.24]
[1760928550558,7.6765,186.8,186.74,46.24]
[1760928552154,4.8165,186.8,186.74,46.24]
[1760928552359,2.72,186.78,186.72,1.32]
[1760928552561,2.72,186.78,186.69,1.32]
[1760928553067,2.72,186.78,186.72,1.32]
[1760928555565,2.72,186.78,186.72,4.5444111]
[1760928555757,2.72,186.78,186.71,3.2244111]
[1760928556365,4.8173,186.77,186.71,3.2244111]
[1760928556563,2.72,186.76,186.71,3.2244111]
[1760928556767,4.8173,186.77,186.71,3.2244111]
[1760928557064,2.67,186.76,186.71,3.2244111]
[1760928557268,2.67,186.76,186.69,4.5444111]
[1760928561570,2.67,186.76,186.69,1.32]
[1760928562864,4.8178,186.75,186.69,1.32]
[1760928563068,4.8178,186.75,186.66,51.0601]
[1760928563370,2.67,186.74,186.66,52.3901]
[1760928564571,2.67,186.73,186.66,47.57]
[1760928564972,4.8186,186.72,186.66,47.57]
[1760928565273,2.67,186.72,186.66,47.57]
[1760928568162,2.67,186.72,186.66,46.24]
[1760928568569,4.8188,186.72,186.63,1.33]
[1760928568769,2.67,186.75,186.63,1.33]
[1760928569072,2.67,186.75,186.63,4.5544111]
[1760928569276,4.8186,186.72,186.64,1.33]
[1760928571678,4.8186,186.72,186.67,3.2244111]
[1760928571972,2.67,186.71,186.67,4.5544111]
[1760928572974,2.67,186.7,186.67,4.5544111]
[1760928576274,2.67,186.81,186.68,1.33]
[1760928576577,2.67,186.81,186.74,4.5544111]
[1760928577375,7.4863,186.81,186.74,1.33]
[1760928578973,2.67,186.81,186.75,3.2244111]
[1760928579278,7.4857,186.84,186.76,1.33]
[1760928579475,2.67,186.84,186.79,1.33]
[1760928579970,4.8145,186.88,186.81,3.2244111]
[1760928580172,2.67,186.89,186.79,1.33]
[1760928580572,2.67,186.89,186.8,1.33]
[1760928581368,20.58491846,186.9,186.76,1.33]
[1760928581369,2.67,186.87,186.76,1.33]
[1760928581567,18.99542956,186.9,186.73,1.33]
[1760928581568,3.2244111,186.84,186.73,1.33]
[1760928581774,2.67,186.8,186.73,1.33]
[1760928583475,4.8168,186.79,186.73,1.33]
[1760928583874,2.67,186.77,186.73,1.33]
[1760928585175,4.8168,186.79,186.73,1.33]
[1760928585480,2.67,186.78,186.66,1.33]
[1760928587078,2.67,186.78,186.67,1.33]
[1760928587776,4.8174,186.77,186.67,1.33]
[1760928587976,2.8,186.76,186.67,1.33]
[1760928588971,4.8178,186.75,186.67,1.33]
[1760928589173,2.8,186.74,186.67,1.33]
[1760928589684,2.8,186.72,186.64,1.33]
[1760928590777,7.6176,186.76,186.66,1.33]
[1760928590984,2.8,186.76,186.66,1.33]
[1760928591375,7.6175,186.76,186.67,4.8198]
[1760928591785,7.6175,186.76,186.68,1.33]
[1760928591985,2.8,186.76,186.69,4.8193]
[1760928592181,7.72573938,186.81,186.71,3.2244111]
[1760928592482,7.72573938,186.81,186.72,1.33]
[1760928592685,2.78,186.81,186.74,4.5544111]
[1760928594475,2.78,186.81,186.75,4.8178]
[1760928596280,12.54123938,186.85,186.76,1.33]
[1760928596475,7.5955,186.85,186.76,1.33]
[1760928596879,2.78,186.85,186.78,1.33]
[1760928598387,2.78,186.88,186.79,8.0409111]
[1760928598586,2.78,186.88,186.8,1.33]
[1760928600789,2.78,186.86,186.8,1.33]
[1760928600982,2.78,186.9,186.8,1.33]
[1760928601183,2.78,186.9,186.83,1.33]
[1760928601388,6.64011131,186.98,186.86,1.33]
[1760928601389,2.78,186.95,186.86,1.33]
[1760928604178,2.78,186.95,186.88,1.33]
[1760928604383,2.78,186.98,186.88,3.2244111]
[1760928604590,2.78,186.98,186.89,1.33]
[1760928606091,2.78,186.98,186.89,4.8142]
[1760928606284,15.84461074,187.03,186.91,1.33]
[1760928606488,2.78,187.02,186.91,1.33]
[1760928606691,7.5909,187.02,186.91,1.33]
[1760928607779,7.5909,187.02,186.92,4.8134]
[1760928608380,2.78,187.02,186.9,3.2244111]
[1760928608590,2.78,187.02,186.95,1.33]
[1760928609291,19.29261334,187.04,186.91,6.1435]
[1760928609493,2.78,187.03,186.91,6.1435]
[1760928609693,3.2244111,187.04,186.91,6.1435]
[1760928609893,2.78,187.03,186.91,6.1435]
[1760928610201,2.78,187.01,186.94,1.33]
[1760928610593,2.78,187.06,186.97,6.142]
[1760928610795,2.78,187.06,186.97,1.33]
[1760928611697,2.78,187.1,187.0,1.33]
[1760928612197,2.78,187.1,187.02,3.2244111]
[1760928612799,2.78,187.1,187.04,2.05647273]
[1760928613398,7.6379,187.14,187.06,3.36647273]
[1760928613597,2.83,187.14,187.06,3.36647273]
[1760928613796,2.83,187.14,187.06,2.05647273]
[1760928614501,2.83,187.12,187.06,2.05647273]
[1760928617395,2.83,187.12,187.05,1.31]
[1760928617596,4.73647273,187.17,187.07,1.32]
[1760928617802,2.68,187.17,187.09,1.32]
[1760928618504,2.68,187.21,187.11,1.32]
[1760928618704,2.05647273,187.2,187.11,1.32]
[1760928620505,2.05647273,187.18,187.11,1.32]
[1760928620700,2.68,187.15,187.07,1.32]
[1760928623002,2.68,187.15,187.08,6.86577273]
[1760928623311,4.73647273,187.18,187.09,1.32]
[1760928623513,9.54327273,187.18,187.09,1.32]
[1760928623808,2.05647273,187.14,187.06,2.05647273]
[1760928624202,2.68,187.15,187.08,2.05647273]
[1760928625106,2.68,187.19,187.1,3.37647273]
[1760928625607,2.68,187.19,187.12,2.05647273]
[1760928626402,2.68,187.19,187.1,3.37647273]
[1760928626605,2.68,187.17,187.1,1.32]
[1760928626808,2.05647273,187.16,187.1,1.32]
[1760928627908,2.68,187.21,187.13,1.32]
[1760928628107,2.05647273,187.2,187.13,1.32]
[1760928628312,2.68,187.21,187.14,2.05647273]
[1760928628511,2.68,187.25,187.17,2.05647273]
[1760928628904,2.68,187.25,187.19,2.05647273]
[1760928629412,2.68,187.3,187.21,2.05647273]
[1760928630409,4.8039,187.29,187.21,2.05647273]
[1760928630605,2.68,187.28,187.19,2.05647273]
[1760928631317,2.68,187.28,187.19,6.86287273]
[1760928631616,4.73647273,187.34,187.25,2.05647273]
[1760928632216,2.68,187.34,187.25,2.05647273]
[1760928632419,2.68,187.34,187.25,6.86137273]
[1760928632716,2.68,187.34,187.27,2.05647273]
[1760928633313,2.68,187.34,187.27,6.86077273]
[1760928633813,4.73647273,187.38,187.3,1.32]
[1760928634319,2.68,187.38,187.3,1.32]
[1760928636221,5.22176694,187.39,187.26,1.32]
[1760928636423,2.68,187.38,187.26,1.32]
[1760928637326,2.68,187.38,187.27,1.32]
[1760928638617,7.4817,187.38,187.27,6.1244]
[1760928638821,7.4817,187.38,187.27,1.32]
[1760928640519,2.68,187.35,187.27,1.32]
[1760928640724,2.68,187.37,187.23,1.32]
[1760928641022,4.8026,187.34,187.24,4.8052]
[1760928641220,2.68,187.36,187.25,1.32]
[1760928643122,2.68,187.36,187.26,4.8047]
[1760928643925,4.8024,187.35,187.26,4.8047]
[1760928644725,2.68,187.32,187.25,1.32]
[1760928646127,4.7134345,187.36,187.25,1.32]
[1760928646425,15.81004001,187.42,187.25,1.32]
[1760928646426,7.90176694,187.4,187.25,1.32]
[1760928646623,2.68,187.38,187.25,1.32]
[1760928646818,7.90176694,187.36,187.25,1.32]
[1760928647030,2.89,187.35,187.2,1.32]
[1760928647325,7.6034345,187.35,187.2,1.32]
[1760928648130,2.89,187.31,187.23,1.32]
[1760928648521,2.89,187.31,187.24,4.8051]
[1760928649626,2.89,187.31,187.23,1.32]
[1760928649833,7.6936,187.31,187.23,1.32]
[1760928650129,2.89,187.27,187.14,1.32]
[1760928650431,2.89,187.23,187.14,1.32]
[1760928650733,7.61224633,187.23,187.14,1.32]
[1760928651027,2.89,187.23,187.14,1.32]
[1760928651227,2.89,187.27,187.14,1.32]
[1760928651429,4.73638319,187.26,187.14,1.32]
[1760928651621,4.73638319,187.25,187.14,1.32]
[1760928651820,4.73701661,187.26,187.14,1.32]
[1760928652131,2.89,187.27,187.17,1.32]
[1760928652430,4.73669094,187.26,187.17,1.32]
[1760928652629,2.89,187.27,187.17,1.32]
[1760928652832,4.74094749,187.26,187.17,1.32]
[1760928653024,2.89,187.27,187.17,1.32]
[1760928653224,4.74107101,187.26,187.17,1.32]
[1760928653420,2.89,187.27,187.17,1.32]
[1760928653624,4.74584991,187.26,187.12,1.32]
[1760928653928,7.63584991,187.25,187.12,1.32]
[1760928654129,2.89,187.23,187.12,1.32]
[1760928654327,2.89,187.21,187.12,6.1283]
[1760928654517,2.89,187.21,187.11,138.38]
[1760928654518,2.89,187.28,187.13,1.32]
[1760928654723,2.89,187.26,187.13,1.32]
[1760928655026,4.75214297,187.25,187.16,4.8073]
[1760928655226,4.75214297,187.24,187.16,6.1273]
[1760928655433,2.89,187.26,187.18,4.8067]
[1760928655822,2.89,187.28,187.11,144.92176694]
[1760928656022,9.50102696,187.27,187.12,45.9]
[1760928656332,2.89,187.2,187.11,139.7]
[1760928656525,4.87564166,187.24,187.07,160.40589978]
[1760928656726,2.89,187.2,187.07,155.18413284]
[1760928656932,2.89,187.18,187.07,155.18413284]
[1760928657826,2.89,187.17,187.07,155.18413284]
[1760928658330,2.89,187.15,187.07,153.86413284]
[1760928658631,9.50678737,187.19,187.07,107.96413284]
[1760928658828,2.89,187.13,187.07,107.96413284]
[1760928659232,2.89,187.13,187.03,6.54176694]
[1760928659931,2.89,187.13,187.03,1.32]
[1760928660128,2.89,187.13,187.05,4.8099]
[1760928660434,2.89,187.13,187.06,1.32]
[1760928661226,2.89,187.13,187.03,5.22176694]
[1760928661430,2.89,187.14,187.02,4.8107]
[1760928661632,2.89,187.16,187.01,52.44176694]
[1760928661835,4.63819362,187.15,187.01,6.54176694]
[1760928662131,2.89,187.13,186.98,45.9]
[1760928662339,9.85996056,187.13,186.98,45.9]
[1760928662534,2.89,187.11,186.98,45.9]
[1760928662837,2.89,187.11,186.91,5.22176694]
[1760928662838,2.89,187.07,186.91,5.22176694]
[1760928663037,2.89,187.06,186.91,5.22176694]
[1760928663333,2.89,187.05,186.92,1.32]
[1760928664227,2.89,187.05,186.94,4.8128]
[1760928664428,2.89,187.06,186.92,1.32]
[1760928665036,2.89,187.01,186.92,1.32]
[1760928666931,2.89,187.01,186.93,4.8131]
[1760928667235,2.89,187.01,186.92,1.32]
[1760928667836,2.89,187.01,186.92,6.1333]
[1760928668231,19.67564166,187.14,186.9,35.08]
[1760928668232,2.89,187.06,186.96,6.54176694]
[1760928668436,5.22176694,187.15,186.96,6.54176694]
[1760928668437,2.89,187.07,186.96,5.22176694]
[1760928668740,2.89,187.03,186.93,4.813]
[1760928668938,2.89,187.03,186.92,6.54176694]
[1760928669134,4.61907612,187.1,186.92,6.54176694]
[1760928669135,2.89,187.08,186.92,6.54176694]
[1760928669333,7.50907612,187.1,186.92,6.54176694]
[1760928669540,2.89,187.04,186.92,11.35506694]
[1760928669935,2.89,187.04,186.92,6.1333]
[1760928670136,2.89,187.04,186.94,10.03456694]
[1760928671040,2.89,187.04,186.95,1.32]
[1760928671337,2.89,187.04,186.96,4.8124]
[1760928672334,2.89,187.04,186.94,5.22176694]
[1760928672539,2.81,187.1,186.94,5.22176694]
[1760928672742,2.81,187.13,186.93,4.813]
[1760928672934,8.62712326,187.14,186.93,4.813]
[1760928673129,4.81,187.06,186.95,4.8126]
[1760928673437,2.81,187.05,186.96,1.32]
[1760928675838,2.81,187.04,186.94,8.62712326]
[1760928676037,2.81,187.03,186.92,6.1333]
[1760928676235,2.81,187.13,186.92,6.1333]
[1760928676436,2.81,187.02,186.92,6.1333]
[1760928676633,2.81,187.01,186.92,1.32]
[1760928676844,2.81,187.0,186.89,4.814]
[1760928679539,8.62712326,187.1,186.88,41.04]
[1760928679540,2.76,187.08,186.88,41.04]
[1760928679941,2.76,187.07,186.88,41.04]
[1760928680142,2.76,187.08,186.88,41.04]
[1760928680339,2.76,186.96,186.88,41.04]
[1760928680645,2.76,186.96,186.88,39.72]
[1760928680835,4.8127,186.95,186.88,39.72]
[1760928681948,2.76,186.96,186.88,39.72]
[1760928683145,2.76,186.96,186.88,41.05]
[1760928684151,7.5724,186.96,186.88,41.05]
[1760928684453,2.76,186.95,186.88,39.72]
[1760928688144,2.76,186.93,186.88,39.72]
[1760928688344,2.76,186.93,186.83,6.1455]
[1760928688945,4.8135,186.92,186.83,6.1455]
[1760928689146,4.8135,186.92,186.83,1.33]
[1760928690849,2.76,186.91,186.83,1.33]
[1760928691347,15.66774344,187.0,186.79,108.20152301]
[1760928691348,2.76,186.89,186.79,108.20152301]
[1760928691548,17.9240533,186.98,186.79,108.20152301]
[1760928691853,4.87564166,186.96,186.79,108.20152301]
[1760928692251,4.87564166,186.95,186.79,108.20152301]
[1760928692652,2.76,186.94,186.79,108.20152301]
[1760928692850,4.87564166,186.95,186.79,108.20152301]
[1760928693053,7.5749,186.87,186.79,108.20152301]
[1760928694660,4.8152,186.85,186.79,108.20152301]
[1760928695158,2.76,186.87,186.79,108.20152301]
[1760928697460,2.76,186.91,186.79,106.87152301]
[1760928697659,7.5755,186.85,186.79,106.87152301]
[1760928697963,2.76,186.85,186.79,106.87152301]
[1760928699066,2.76,186.85,186.79,108.20152301]
[1760928700563,4.8152,186.86,186.79,108.20152301]
[1760928700763,4.8145,186.88,186.79,108.20152301]
[1760928700963,2.76,186.93,186.81,1.33]
[1760928701159,4.8139,186.91,186.81,1.33]
[1760928701368,2.76,186.9,186.81,1.33]
[1760928701865,4.8142,186.89,186.81,1.33]
[1760928702064,4.87564166,186.92,186.81,1.33]
[1760928702269,7.63564166,186.91,186.81,1.33]
[1760928702467,12.07799959,186.91,186.81,1.33]
[1760928702669,7.5752,186.85,186.81,1.33]
[1760928703069,2.76,186.84,186.79,106.87152301]
[1760928703270,7.5752,186.85,186.79,106.87152301]
[1760928705375,4.8147,186.87,186.8,1.33]
[1760928706175,2.76,186.89,186.8,1.33]
[1760928706176,4.8152,186.86,186.8,1.33]
[1760928706565,4.8154,186.85,186.8,1.33]
[1760928706770,2.76,186.84,186.8,1.33]
[1760928707179,4.87564166,186.87,186.74,1.33]
[1760928707373,2.7,186.86,186.74,1.33]
[1760928707677,4.8162,186.82,186.74,1.33]
[1760928708070,2.7,186.83,186.74,1.33]
[1760928708474,2.7,186.83,186.75,1.33]
[1760928708876,4.815,186.86,186.77,1.33]
[1760928711772,2.7,186.89,186.74,47.23]
[1760928711974,4.87564166,186.89,186.74,47.23]
[1760928712280,2.7,186.87,186.74,45.9]
[1760928712479,2.7,186.87,186.75,1.33]
[1760928714079,4.8152,186.86,186.75,6.1476]
[1760928714784,4.8152,186.86,186.76,1.33]
[1760928714972,4.8152,186.86,186.78,1.33]
[1760928715173,2.7,186.87,186.78,1.33]
[1760928716682,7.5149,186.87,186.78,1.33]
[1760928719580,2.7,186.87,186.78,4.8168]
[1760928719785,2.7,186.87,186.79,1.33]
[1760928721386,2.7,186.87,186.74,8.62712326]
[1760928721387,7.57564166,186.87,186.74,47.19]
[1760928721682,6.64011131,186.89,186.74,47.19]
[1760928721683,2.7,186.81,186.74,47.19]
[1760928722289,4.8167,186.8,186.71,1.33]
[1760928723185,2.7,186.81,186.71,1.33]
[1760928723578,4.87564166,186.86,186.67,1.33]
[1760928723778,2.7,186.78,186.67,1.33]
[1760928724383,2.7,186.78,186.67,8.62712326]
[1760928724586,2.7,186.78,186.68,1.33]
[1760928724989,7.517,186.78,186.68,6.1496]
[1760928725184,7.517,186.78,186.68,1.33]
[1760928727389,2.7,186.78,186.68,1.33]
[1760928727790,2.7,186.78,186.71,1.33]
[1760928730394,7.517,186.78,186.71,1.33]
[1760928730696,7.6785817,186.8,186.67,1.33]
[1760928731097,2.7,186.78,186.67,1.33]
[1760928731896,4.8175,186.77,186.67,1.33]
[1760928732794,2.7,186.78,186.67,1.33]
[1760928733496,7.517,186.78,186.68,4.8196]
[1760928738500,2.7,186.77,186.68,4.8196]
[1760928738701,2.7,186.77,186.69,2.06425998]
[1760928745609,2.7,186.77,186.68,4.8196]
[1760928745910,2.06425998,186.77,186.67,3.39425998]
[1760928746108,2.7,186.76,186.67,3.39425998]
[1760928746704,4.818,186.75,186.67,3.39425998]
[1760928747011,2.7,186.74,186.67,3.39425998]
[1760928747212,2.7,186.71,186.65,154.80114426]
[1760928747402,6.88325998,186.71,186.65,154.80114426]
[1760928747605,2.7,186.7,186.65,154.80114426]
[1760928748505,2.7,186.7,186.61,6.1511]
[1760928748506,2.7,186.68,186.61,1.33]
[1760928749607,2.7,186.68,186.59,45.82]
[1760928749608,2.06425998,186.67,186.59,45.82]
[1760928749814,2.7,186.66,186.59,45.82]
[1760928750016,2.06425998,186.65,186.59,45.82]
[1760928751304,2.7,186.64,186.58,1.33]
[1760928752411,2.7,186.69,186.6,2.06425998]
[1760928752609,2.7,186.69,186.54,45.82]
[1760928752610,2.7,186.69,186.62,2.06425998]
[1760928753612,2.7,186.69,186.64,3.39425998]
[1760928755314,4.8188,186.71,186.64,3.39425998]
[1760928755513,2.7,186.7,186.64,1.33]
[1760928756316,2.7,186.75,186.68,2.06425998]
[1760928756618,19.07898794,186.75,186.68,2.06425998]
[1760928758219,23.89678794,186.75,186.68,2.06425998]
[1760928758520,4.819,186.71,186.65,2.06425998]
[1760928758722,7.519,186.71,186.65,2.06425998]
[1760928759217,2.7,186.74,186.66,1.33]
[1760928759523,2.7,186.74,186.67,2.06425998]
[1760928760516,2.7,186.71,186.65,2.06425998]